fUSD/lending_fUSD_20240425
["ID","MTS","AMOUNT","RATE_DAILY","PERIOD"]
[323525429,1714068644416,-500.0,0.00011232,2]
[323525430,1714068644425,-500.0,0.00011232,2]
[323525431,1714068644434,-500.0,0.00011232,2]
[323525432,1714068644443,-779.83,0.00011232,2]
[323525433,1714068644453,-500.0,0.00011232,2]
[323525434,1714068644462,-500.0,0.00011232,2]
[323525435,1714068644471,-500.0,0.00011232,2]
[323525436,1714068644481,-500.0,0.00011232,2]
[323525437,1714068644490,-505.11054027,0.00011232,2]
[323525438,1714068644869,-2856.6536,8.571e-05,2]
[323525439,1714068644879,-500.0,0.00010958,2]
[323525440,1714068644889,-58.49945973,0.00011232,2]
[323525441,1714068644898,-851.88,0.00011232,2]
[323525442,1714068644909,-500.0,0.00011232,2]
[323525443,1714068644918,-500.0,0.00011232,2]
[323525444,1714068644927,-819.83,0.00011232,2]
[323525445,1714068644937,-514.55,0.00011232,2]
[323525446,1714068644946,-619.66,0.00011232,2]
[323525447,1714068644955,-500.0,0.00011232,2]
[323525448,1714068644964,-525.88,0.00011232,2]
[323525449,1714068644973,-168.86477831,0.00011232,2]
[323525450,1714068644983,-500.0,0.00011232,2]
[323525451,1714068644993,-500.0,0.00011232,2]
[323525452,1714068645002,-562.87,0.00011232,2]
[323525453,1714068645012,-746.56,0.00011232,2]
[323525454,1714068645021,-203.63,0.00011232,2]
[323525455,1714068645031,-641.15,0.00011232,2]
[323525456,1714068645041,-500.0,0.00011232,2]
[323525457,1714068645051,-901.1,0.00011232,2]
[323525458,1714068645060,-539.7,0.00011232,2]
[323525459,1714068645069,-500.0,0.00011232,2]
[323525460,1714068645078,-706.41,0.00011232,2]
[323525461,1714068645087,-500.0,0.00011232,2]
[323525462,1714068645098,-500.0,0.00011232,2]
[323525463,1714068645110,-500.0,0.00011232,2]
[323525464,1714068645120,-500.0,0.00011232,2]
[323525465,1714068645130,-633.82,0.00011232,2]
[323525466,1714068645139,-500.0,0.00011232,2]
[323525467,1714068645149,-849.61,0.00011232,2]
[323525468,1714068645159,-500.0,0.00011232,2]
[323525469,1714068645168,-500.0,0.00011232,2]
[323525470,1714068645177,-500.0,0.00011232,2]
[323525471,1714068645186,-790.26,0.00011232,2]
[323525472,1714068645196,-500.0,0.00011232,2]
[323525473,1714068645205,-500.0,0.00011232,2]
[323525474,1714068645214,-696.6,0.00011232,2]
[323525475,1714068645224,-500.0,0.00011232,2]
[323525476,1714068645233,-278.57,0.00011232,2]
[323525477,1714068645243,-500.0,0.00011232,2]
[323525478,1714068645252,-500.0,0.00011232,2]
[323525479,1714068645261,-615.65,0.00011232,2]
[323525480,1714068645270,-500.0,0.00011232,2]
[323525481,1714068645279,-500.0,0.00011232,2]
[323525482,1714068645288,-500.0,0.00011232,2]
[323525483,1714068645297,-500.0,0.00011232,2]
[323525484,1714068645307,-500.0,0.00011232,2]
[323525485,1714068645316,-500.0,0.00011232,2]
[323525486,1714068645325,-500.0,0.00011232,2]
[323525487,1714068645335,-500.0,0.00011232,2]
[323525488,1714068645344,-398.91847916,0.00011232,2]
[323525489,1714068645353,-713.25,0.00011232,2]
[323525490,1714068645365,-500.0,0.00011232,2]
[323525491,1714068645374,-500.0,0.00011232,2]
[323525492,1714068645383,-869.11,0.00011232,2]
[323525493,1714068645392,-500.0,0.00011232,2]
[323525494,1714068645402,-500.0,0.00011232,2]
[323525495,1714068645411,-513.8,0.00011232,2]
[323525496,1714068645421,-487.15,0.00011232,2]
[323525497,1714068645430,-500.0,0.00011232,2]
[323525498,1714068645440,-500.0,0.00011232,2]
[323525499,1714068645450,-531.84,0.00011232,2]
[323525500,1714068645459,-500.0,0.00011232,2]
[323525501,1714068645468,-500.0,0.00011232,2]
[323525503,1714068645477,-500.0,0.00011232,2]
[323525504,1714068645488,-500.0,0.00011232,2]
[323525506,1714068645498,-521.25,0.00011232,2]
[323525508,1714068645507,-500.0,0.00011232,2]
[323525510,1714068645518,-500.0,0.00011232,2]
[323525511,1714068645527,-500.0,0.00011232,2]
[323525513,1714068645536,-500.0,0.00011232,2]
[323525514,1714068645545,-500.0,0.00011232,2]
[323525515,1714068645554,-500.0,0.00011232,2]
[323525516,1714068645563,-500.0,0.00011232,2]
[323525517,1714068645572,-667.75,0.00011232,2]
[323525518,1714068645581,-500.0,0.00011232,2]
[323525520,1714068645590,-500.0,0.00011232,2]
[323525521,1714068645599,-430.11,0.00011232,2]
[323525522,1714068645608,-500.0,0.00011232,2]
[323525523,1714068645617,-500.0,0.00011232,2]
[323525524,1714068645626,-706.33,0.00011232,2]
[323525525,1714068645636,-500.0,0.00011232,2]
[323525526,1714068645645,-567.64,0.00011232,2]
[323525527,1714068645654,-500.0,0.00011232,2]
[323525528,1714068645663,-908.04,0.00011232,2]
[323525529,1714068645672,-500.0,0.00011232,2]
[323525530,1714068645682,-594.4,0.00011232,2]
[323525531,1714068645691,-794.8,0.00011232,2]
[323525532,1714068645700,-500.0,0.00011232,2]
[323525533,1714068645709,-1005.32,0.00011232,2]
[323525534,1714068645719,-500.0,0.00011232,2]
[323525535,1714068645728,-777.25,0.00011232,2]
[323525536,1714068645737,-524.43,0.00011232,2]
[323525537,1714068645747,-500.0,0.00011232,2]
[323525538,1714068645756,-523.23,0.00011232,2]
[323525539,1714068645766,-500.0,0.00011232,2]
[323525540,1714068645777,-500.0,0.00011232,2]
[323525541,1714068645786,-500.0,0.00011232,2]
[323525542,1714068645795,-500.0,0.00011232,2]
[323525543,1714068645804,-150.0,0.00011232,2]
[323525544,1714068645814,-500.0,0.00011232,2]
[323525545,1714068646022,-500.0,0.00011232,2]
[323525546,1714068646032,-500.0,0.00011232,2]
[323525547,1714068646041,-500.0,0.00011232,2]
[323525548,1714068646051,-645.29,0.00011232,2]
[323525549,1714068646061,-511.1,0.00011232,2]
[323525550,1714068646071,-500.0,0.00011232,2]
[323525551,1714068646080,-500.0,0.00011232,2]
[323525552,1714068646089,-500.0,0.00011232,2]
[323525553,1714068646098,-486.92421029,0.00011232,2]
[323525554,1714068646107,-637.77,0.00011232,2]
[323525555,1714068646117,-500.0,0.00011232,2]
[323525556,1714068646127,-500.0,0.00011232,2]
[323525557,1714068646139,-717.81,0.00011232,2]
[323525558,1714068646149,-500.0,0.00011232,2]
[323525559,1714068646159,-500.0,0.00011232,2]
[323525560,1714068646168,-890.71,0.00011232,2]
[323525561,1714068646177,-500.0,0.00011232,2]
[323525562,1714068646188,-500.0,0.00011232,2]
[323525563,1714068646197,-626.43,0.00011232,2]
[323525564,1714068646207,-558.38,0.00011232,2]
[323525565,1714068646216,-810.55,0.00011232,2]
[323525566,1714068646225,-500.0,0.00011232,2]
[323525567,1714068646235,-500.0,0.00011232,2]
[323525568,1714068646245,-213.24,0.00011232,2]
[323525569,1714068646253,-500.0,0.00011232,2]
[323525570,1714068646263,-801.12,0.00011232,2]
[323525571,1714068646274,-907.09,0.00011232,2]
[323525572,1714068646283,-1971.54,0.00011232,2]
[323525573,1714068646293,-500.0,0.00011232,2]
[323525574,1714068646302,-500.0,0.00011232,2]
[323525575,1714068646312,-509.09,0.00011232,2]
[323525576,1714068646322,-232.12156096,0.00011232,2]
[323525577,1714068646331,-500.0,0.00011232,2]
[323525578,1714068646341,-500.0,0.00011232,2]
[323525579,1714068646350,-500.0,0.00011232,2]
[323525580,1714068646361,-808.16,0.00011232,2]
[323525581,1714068646370,-1464.25,0.00011232,2]
[323525582,1714068646379,-500.0,0.00011232,2]
[323525583,1714068646388,-500.0,0.00011232,2]
[323525584,1714068646397,-574.24,0.00011232,2]
[323525585,1714068646407,-528.77,0.00011232,2]
[323525586,1714068646416,-500.0,0.00011232,2]
[323525587,1714068646426,-500.0,0.00011232,2]
[323525588,1714068646435,-1094.64,0.00011232,2]
[323525589,1714068646446,-1037.26,0.00011232,2]
[323525590,1714068646455,-500.0,0.00011232,2]
[323525591,1714068646464,-694.51,0.00011232,2]
[323525592,1714068646474,-1310.4,0.00011232,2]
[323525593,1714068646483,-863.81,0.00011232,2]
[323525594,1714068646493,-733.1,0.00011232,2]
[323525595,1714068646501,-500.0,0.00011232,2]
[323525596,1714068646510,-500.0,0.00011232,2]
[323525597,1714068646519,-500.0,0.00011232,2]
[323525598,1714068646529,-500.0,0.00011232,2]
[323525599,1714068646538,-500.0,0.00011232,2]
[323525600,1714068646547,-500.0,0.00011232,2]
[323525601,1714068646556,-500.0,0.00011232,2]
[323525602,1714068646566,-867.11,0.00011232,2]
[323525603,1714068646576,-706.57,0.00011232,2]
[323525604,1714068646585,-500.0,0.00011232,2]
[323525605,1714068646594,-500.0,0.00011232,2]
[323525606,1714068646603,-5460.53,0.00011232,2]
[323525607,1714068646612,-1802.17,0.00011232,2]
[323525608,1714068646622,-500.0,0.00011232,2]
[323525609,1714068646632,-500.0,0.00011232,2]
[323525610,1714068646642,-22155.62,0.00011232,2]
[323525611,1714068646651,-500.0,0.00011232,2]
[323525612,1714068646662,-500.0,0.00011232,2]
[323525613,1714068646671,-1319.62,0.00011232,2]
[323525614,1714068646682,-500.0,0.00011232,2]
[323525615,1714068646694,-1310.16,0.00011232,2]
[323525616,1714068646703,-500.0,0.00011232,2]
[323525617,1714068646713,-744.01,0.00011232,2]
[323525618,1714068646722,-721.67,0.00011232,2]
[323525619,1714068646732,-500.0,0.00011232,2]
[323525620,1714068646741,-753.87,0.00011232,2]
[323525621,1714068646750,-823.67,0.00011232,2]
[323525622,1714068646761,-500.0,0.00011232,2]
[323525623,1714068646773,-3619.89,0.00011232,2]
[323525624,1714068646782,-455.21,0.00011232,2]
[323525625,1714068646793,-972.03,0.00011232,2]
[323525626,1714068646803,-2734.76,0.00011232,2]
[323525627,1714068646813,-500.0,0.00011232,2]
[323525628,1714068646822,-2416.33,0.00011232,2]
[323525629,1714068646831,-500.0,0.00011232,2]
[323525630,1714068646841,-737.05,0.00011232,2]
[323525631,1714068646850,-500.0,0.00011232,2]
[323525632,1714068646861,-695.64,0.00011232,2]
[323525633,1714068646872,-500.0,0.00011232,2]
[323525634,1714068646881,-1091.22,0.00011232,2]
[323525635,1714068646890,-1272.63,0.00011232,2]
[323525636,1714068646899,-500.0,0.00011232,2]
[323525637,1714068646910,-4231.28,0.00011232,2]
[323525638,1714068646919,-749.46,0.00011232,2]
[323525639,1714068646928,-500.0,0.00011232,2]
[323525640,1714068646938,-500.0,0.00011232,2]
[323525641,1714068646947,-500.0,0.00011232,2]
[323525642,1714068646956,-500.0,0.00011232,2]
[323525643,1714068646965,-1354.34,0.00011232,2]
[323525644,1714068646975,-500.0,0.00011232,2]
[323525645,1714068646984,-797.21,0.00011232,2]
[323525646,1714068646993,-763.41,0.00011232,2]
[323525647,1714068647003,-500.0,0.00011232,2]
[323525648,1714068647012,-1071.83,0.00011232,2]
[323525649,1714068647022,-500.0,0.00011232,2]
[323525650,1714068647031,-561.75,0.00011232,2]
[323525651,1714068647040,-991.79,0.00011232,2]
[323525652,1714068647050,-1280.43,0.00011232,2]
[323525653,1714068647059,-514.03,0.00011232,2]
[323525654,1714068647069,-721.73,0.00011232,2]
[323525655,1714068647078,-610.48,0.00011232,2]
[323525656,1714068647087,-1023.62,0.00011232,2]
[323525657,1714068647096,-729.64,0.00011232,2]
[323525658,1714068647105,-328.07,0.00011232,2]
[323525659,1714068647114,-742.55,0.00011232,2]
[323525660,1714068647123,-500.0,0.00011232,2]
[323525661,1714068647136,-2092.57,0.00011232,2]
[323525662,1714068647146,-500.0,0.00011232,2]
[323525663,1714068647156,-500.0,0.00011232,2]
[323525664,1714068647165,-715.47,0.00011232,2]
[323525665,1714068647174,-692.1,0.00011232,2]
[323525666,1714068647183,-2430.85,0.00011232,2]
[323525667,1714068647192,-781.43,0.00011232,2]
[323525668,1714068647201,-885.09,0.00011232,2]
[323525669,1714068647210,-500.0,0.00011232,2]
[323525670,1714068647219,-541.06,0.00011232,2]
[323525671,1714068647229,-500.0,0.00011232,2]
[323525672,1714068647237,-636.93,0.00011232,2]
[323525673,1714068647247,-743.73,0.00011232,2]
[323525674,1714068647256,-812.83,0.00011232,2]
[323525675,1714068647265,-161.08,0.00011232,2]
[323525676,1714068647274,-500.0,0.00011232,2]
[323525677,1714068647283,-2736.02,0.00011232,2]
[323525678,1714068647292,-1230.08,0.00011232,2]
[323525679,1714068647302,-500.0,0.00011232,2]
[323525680,1714068647311,-680.47,0.00011232,2]
[323525681,1714068647320,-500.0,0.00011232,2]
[323525682,1714068647329,-519.69,0.00011232,2]
[323525683,1714068647338,-5616.43,0.00011232,2]
[323525684,1714068647347,-500.0,0.00011232,2]
[323525685,1714068647357,-500.0,0.00011232,2]
[323525686,1714068647366,-314.01,0.00011232,2]
[323525687,1714068647375,-660.44,0.00011232,2]
[323525688,1714068647385,-988.49,0.00011232,2]
[323525689,1714068647394,-667.79,0.00011232,2]
[323525690,1714068647403,-500.0,0.00011232,2]
[323525691,1714068647413,-500.0,0.00011232,2]
[323525692,1714068647423,-253.28,0.00011232,2]
[323525693,1714068647432,-500.0,0.00011232,2]
[323525694,1714068647441,-500.0,0.00011232,2]
[323525695,1714068647451,-500.0,0.00011232,2]
[323525696,1714068647460,-2199.45,0.00011232,2]
[323525697,1714068647469,-500.0,0.00011232,2]
[323525698,1714068647479,-673.56,0.00011232,2]
[323525699,1714068647489,-500.0,0.00011232,2]
[323525700,1714068647498,-1230.6,0.00011232,2]
[323525701,1714068647508,-3718.07,0.00011232,2]
[323525702,1714068647517,-1015.37,0.00011232,2]
[323525703,1714068647527,-500.0,0.00011232,2]
[323525704,1714068647536,-500.0,0.00011232,2]
[323525705,1714068647546,-500.0,0.00011232,2]
[323525706,1714068647555,-643.78,0.00011232,2]
[323525707,1714068647564,-500.0,0.00011232,2]
[323525708,1714068647574,-2939.67,0.00011232,2]
[323525709,1714068647582,-500.0,0.00011232,2]
[323525710,1714068647593,-500.0,0.00011232,2]
[323525711,1714068647602,-1243.73,0.00011232,2]
[323525712,1714068647611,-1531.53,0.00011232,2]
[323525713,1714068647622,-500.0,0.00011232,2]
[323525714,1714068647632,-865.9,0.00011232,2]
[323525715,1714068647642,-500.0,0.00011232,2]
[323525716,1714068647651,-703.02,0.00011232,2]
[323525717,1714068647660,-4426.7,0.00011232,2]
[323525718,1714068647670,-500.0,0.00011232,2]
[323525719,1714068647679,-3624.58,0.00011232,2]
[323525720,1714068647689,-500.0,0.00011232,2]
[323525721,1714068647698,-1943.13,0.00011232,2]
[323525722,1714068647709,-500.0,0.00011232,2]
[323525723,1714068647719,-500.0,0.00011232,2]
[323525724,1714068647728,-885.01299572,0.00011232,2]
[323525725,1714068647754,-760.82700428,0.00011232,2]
[323525726,1714068647768,-207.55875335,0.00011232,2]
[323525727,1714068647789,-675.23513532,0.00011232,2]
[323525728,1714068647801,-518.76000498,0.00011232,2]
[323525729,1714068647812,-473.70500001,0.00011232,2]
[323525730,1714068647824,-34.97110634,0.00011232,2]
[323525731,1714068647833,-769.31889366,0.00011232,2]
[323525732,1714068647856,-274.03110634,0.00011232,2]
[323525733,1714068647865,-500.0,0.00011232,2]
[323525734,1714068647875,-2824.18,0.00011232,2]
[323525735,1714068647884,-1256.88530492,0.00011232,2]
[323525736,1714068648553,-164.94637069,0.00010956,2]
[323525737,1714068648564,-359.52096542,0.00010956,2]
[323525738,1714068648574,-538.116345,0.00010957,2]
[323525739,1714068648583,-972.49054456,0.00010957,2]
[323525740,1714068648593,-168.74926631,0.0001123,2]
[323525741,1714068648604,-3616.28469508,0.00011232,2]
[323525742,1714068648615,-500.0,0.00011232,2]
[323525743,1714068648625,-7221.11,0.00011232,2]
[323525744,1714068648635,-500.0,0.00011232,2]
[323525745,1714068648645,-856.1,0.00011232,2]
[323525746,1714068648655,-869.73,0.00011232,2]
[323525747,1714068648665,-2004.65,0.00011232,2]
[323525748,1714068648674,-500.0,0.00011232,2]
[323525749,1714068648683,-787.9,0.00011232,2]
[323525750,1714068648692,-500.0,0.00011232,2]
[323525751,1714068648702,-500.0,0.00011232,2]
[323525752,1714068648711,-7844.2,0.00011232,2]
[323525753,1714068648722,-500.0,0.00011232,2]
[323525754,1714068648731,-951.75,0.00011232,2]
[323525755,1714068648740,-500.0,0.00011232,2]
[323525756,1714068648749,-937.11,0.00011232,2]
[323525757,1714068648759,-500.0,0.00011232,2]
[323525758,1714068648769,-500.0,0.00011232,2]
[323525759,1714068648780,-627.81,0.00011232,2]
[323525760,1714068648789,-1023.29,0.00011232,2]
[323525761,1714068648799,-377.88315702,0.00011232,2]
[323525762,1714068648810,-500.0,0.00011232,2]
[323525763,1714068648821,-500.0,0.00011232,2]
[323525764,1714068648831,-160.0,0.00011244,2]
[323525765,1714068648840,-150.0,0.0001137,2]
[323525766,1714068648851,-522.13,0.0001137,2]
[323525767,1714068648861,-350.51,0.0001137,2]
[323525768,1714068648870,-522.13,0.0001137,2]
[323525769,1714068648879,-350.51,0.0001137,2]
[323525770,1714068648888,-909.28,0.0001137,2]
[323525771,1714068648898,-700.7,0.0001137,2]
[323525772,1714068648909,-155.25626697,0.00011406,2]
[323525773,1714068648918,-1697.0,0.000115,2]
[323525774,1714068648927,-584.38,0.00011506,2]
[323525775,1714068648936,-500.0,0.00011506,2]
[323525776,1714068648946,-500.0,0.00011506,2]
[323525777,1714068648955,-779.83,0.00011506,2]
[323525778,1714068648964,-308.7555679,0.00011506,2]
[323525779,1714068648973,-500.0,0.00011506,2]
[323525780,1714068648982,-500.0,0.00011506,2]
[323525781,1714068648993,-851.88,0.00011506,2]
[323525782,1714068649002,-500.0,0.00011506,2]
[323525783,1714068649012,-500.0,0.00011506,2]
[323525784,1714068649203,-819.83,0.00011506,2]
[323525785,1714068649213,-514.55,0.00011506,2]
[323525786,1714068649223,-525.88,0.00011506,2]
[323525787,1714068649233,-500.0,0.00011506,2]
[323525788,1714068649243,-500.0,0.00011506,2]
[323525789,1714068649252,-746.56,0.00011506,2]
[323525790,1714068649262,-641.15,0.00011506,2]
[323525791,1714068649271,-500.0,0.00011506,2]
[323525792,1714068649281,-901.1,0.00011506,2]
[323525793,1714068649290,-539.7,0.00011506,2]
[323525794,1714068649300,-500.0,0.00011506,2]
[323525795,1714068649309,-706.41,0.00011506,2]
[323525796,1714068649319,-500.0,0.00011506,2]
[323525797,1714068649329,-500.0,0.00011506,2]
[323525798,1714068649339,-378.67,0.00011506,2]
[323525799,1714068649349,-500.0,0.00011506,2]
[323525800,1714068649361,-633.82,0.00011506,2]
[323525801,1714068649371,-500.0,0.00011506,2]
[323525802,1714068649381,-849.61,0.00011506,2]
[323525803,1714068649391,-500.0,0.00011506,2]
[323525804,1714068649401,-500.0,0.00011506,2]
[323525805,1714068649412,-500.0,0.00011506,2]
[323525806,1714068649423,-790.26,0.00011506,2]
[323525807,1714068649433,-500.0,0.00011506,2]
[323525808,1714068649443,-515.8,0.00011506,2]
[323525809,1714068649452,-696.6,0.00011506,2]
[323525810,1714068649462,-500.0,0.00011506,2]
[323525811,1714068649471,-500.0,0.00011506,2]
[323525812,1714068649480,-500.0,0.00011506,2]
[323525813,1714068649490,-500.0,0.00011506,2]
[323525814,1714068649499,-500.0,0.00011506,2]
[323525815,1714068649509,-500.0,0.00011506,2]
[323525816,1714068649518,-500.0,0.00011506,2]
[323525817,1714068649528,-210.38418792,0.00011506,2]
[323525818,1714068649537,-500.0,0.00011506,2]
[323525819,1714068649546,-713.25,0.00011506,2]
[323525820,1714068649556,-276.19,0.00011506,2]
[323525821,1714068649565,-869.11,0.00011506,2]
[323525822,1714068649575,-500.0,0.00011506,2]
[323525823,1714068649584,-500.0,0.00011506,2]
[323525824,1714068649593,-513.8,0.00011506,2]
[323525825,1714068649602,-500.0,0.00011506,2]
[323525826,1714068649612,-500.0,0.00011506,2]
[323525827,1714068649621,-531.84,0.00011506,2]
[323525828,1714068649630,-500.0,0.00011506,2]
[323525829,1714068649639,-306.39,0.00011506,2]
[323525830,1714068649648,-500.0,0.00011506,2]
[323525831,1714068649658,-500.0,0.00011506,2]
[323525832,1714068649668,-521.25,0.00011506,2]
[323525833,1714068649677,-500.0,0.00011506,2]
[323525834,1714068649687,-500.0,0.00011506,2]
[323525835,1714068649696,-500.0,0.00011506,2]
[323525836,1714068649705,-500.0,0.00011506,2]
[323525837,1714068649714,-500.0,0.00011506,2]
[323525838,1714068649724,-500.0,0.00011506,2]
[323525839,1714068649733,-500.0,0.00011506,2]
[323525840,1714068649742,-667.75,0.00011506,2]
[323525841,1714068649752,-439.35,0.00011506,2]
[323525842,1714068649762,-500.0,0.00011506,2]
[323525843,1714068649774,-500.0,0.00011506,2]
[323525844,1714068649783,-500.0,0.00011506,2]
[323525845,1714068649793,-706.33,0.00011506,2]
[323525846,1714068649802,-500.0,0.00011506,2]
[323525847,1714068649813,-500.0,0.00011506,2]
[323525848,1714068649822,-908.04,0.00011506,2]
[323525849,1714068649832,-500.0,0.00011506,2]
[323525850,1714068649841,-594.4,0.00011506,2]
[323525851,1714068649852,-794.8,0.00011506,2]
[323525852,1714068649861,-500.0,0.00011506,2]
[323525853,1714068649871,-1005.32,0.00011506,2]
[323525854,1714068649880,-500.0,0.00011506,2]
[323525855,1714068649890,-777.25,0.00011506,2]
[323525856,1714068649899,-524.43,0.00011506,2]
[323525857,1714068649910,-500.0,0.00011506,2]
[323525858,1714068649919,-523.23,0.00011506,2]
[323525859,1714068649929,-500.0,0.00011506,2]
[323525860,1714068649939,-500.0,0.00011506,2]
[323525861,1714068649948,-393.12865366,0.00011506,2]
[323525862,1714068649957,-150.0,0.00011506,2]
[323525863,1714068649966,-500.0,0.00011506,2]
[323525864,1714068649975,-500.0,0.00011506,2]
[323525865,1714068649984,-500.0,0.00011506,2]
[323525866,1714068649994,-500.0,0.00011506,2]
[323525867,1714068650003,-511.1,0.00011506,2]
[323525868,1714068650013,-500.0,0.00011506,2]
[323525869,1714068650023,-500.0,0.00011506,2]
[323525870,1714068650033,-637.77,0.00011506,2]
[323525871,1714068650043,-647.59,0.00011506,2]
[323525872,1714068650053,-500.0,0.00011506,2]
[323525873,1714068650063,-717.81,0.00011506,2]
[323525874,1714068650073,-480.28727544,0.00011506,2]
[323525875,1714068650082,-500.0,0.00011506,2]
[323525876,1714068650092,-890.71,0.00011506,2]
[323525877,1714068650102,-500.0,0.00011506,2]
[323525878,1714068650112,-500.0,0.00011506,2]
[323525879,1714068650122,-626.43,0.00011506,2]
[323525880,1714068650131,-558.38,0.00011506,2]
[323525881,1714068650141,-810.55,0.00011506,2]
[323525882,1714068650151,-500.0,0.00011506,2]
[323525883,1714068650162,-907.09,0.00011506,2]
[323525884,1714068650171,-1971.54,0.00011506,2]
[323525885,1714068650181,-500.0,0.00011506,2]
[323525886,1714068650191,-644.86,0.00011506,2]
[323525887,1714068650200,-509.09,0.00011506,2]
[323525888,1714068650209,-500.0,0.00011506,2]
[323525889,1714068650219,-500.0,0.00011506,2]
[323525890,1714068650228,-500.0,0.00011506,2]
[323525891,1714068650238,-808.16,0.00011506,2]
[323525892,1714068650247,-1464.25,0.00011506,2]
[323525893,1714068650256,-574.24,0.00011506,2]
[323525894,1714068650266,-528.77,0.00011506,2]
[323525895,1714068650274,-150.90818067,0.00011506,2]
[323525896,1714068650306,-1000.0,0.00010958,2]
[323525897,1714068650359,-949.26000002,0.00010958,2]
[323525898,1714068650370,-2545.7837395,0.00010958,2]
[323525899,1714068650382,-2919.80314172,0.00010958,2]
[323525900,1714068650393,-4071.23368386,0.00010958,2]
[323525901,1714068651674,190646.00536275,8.219e-05,2]
[323525902,1714068653828,286.05635973,8.219e-05,2]
[323525903,1714068657880,155.0,8.219e-05,2]
[323525904,1714068666194,9127.94378476,8.219e-05,2]
[323526224,1714068852534,-936.0,8.761e-05,2]
[323526225,1714068852561,-817.84000414,9.856e-05,2]
[323526226,1714068852592,-936.0,9.856e-05,2]
[323526227,1714068852618,-3310.15999586,9.995e-05,2]
[323526231,1714068881570,-1608.83176517,9.925e-05,2]
[323526232,1714068881596,-22691.16823483,9.926e-05,2]
[323526235,1714068902945,-1208.83176517,9.926e-05,2]
[323526236,1714068902972,-291.16823483,9.995e-05,2]
[323526246,1714069004388,2010.49,8.219e-05,2]
[323526248,1714069154033,191.91530623,7.524e-05,2]
[323526255,1714069295554,221.89412981,8.178e-05,2]
[323526267,1714069532037,1909.96,8.219e-05,2]
[323526281,1714069831854,-257.86064903,9.373e-05,2]
[323526282,1714069831867,-20.39636634,9.373e-05,2]
[323526283,1714069831910,-888.36762147,9.373e-05,2]
[323526284,1714069831921,-499.72856,9.373e-05,2]
[323526285,1714069831964,-450.037073,9.373e-05,2]
[323526286,1714069832033,-1142.30005324,9.373e-05,2]
[323526287,1714069832042,-533.25146559,9.374e-05,2]
[323526288,1714069832051,-659.0,9.378e-05,2]
[323526289,1714069832060,-163.71,9.382e-05,2]
[323526290,1714069832069,-150.0,9.394e-05,2]
[323526291,1714069832078,-2480.66,9.395e-05,2]
[323526292,1714069832087,-250.0,9.438e-05,2]
[323526293,1714069832096,-2193.12674715,9.463e-05,2]
[323526294,1714069832108,-13440.13964338,9.463e-05,2]
[323526295,1714069832122,-8266.73360947,9.463e-05,2]
[323526301,1714069832302,-971.53,9.463e-05,2]
[323526305,1714069832369,-159.19,9.466e-05,2]
[323526307,1714069832379,-200.0,9.471e-05,2]